Cogmind - Beta 16 @@@ ROGUE MODE // 2025.12.01 @ 22:17:58 Player: Skysub Result: Destroyed by G-47 Trooper with Particle Gun Performance ------------- Evolutions (0) 0 Regions Visited (1) 200 Robots Destroyed (29) 145 Value Destroyed (596) 596 Prototype IDs (0) 0 Alien Tech Used (0) 0 Bonus (0) 0 TOTAL SCORE: 941 Bonus ------- None Cogmind --------- Core Integrity 0/250 Matter 291/300 Energy 100/100 System Corruption 2% Temperature Cool (9) Movement Core (1400) Ox27 Location -10/Materials Parts ------- > --- POWER (1) -------- (None) > --- PROPULSION (2) --- (None) > --- UTILITY (2) ------ Huge Storage Unit > --- WEAPON (2) ------- Light Assault Rifle Light Assault Rifle > --- INVENTORY (25) --- Light Treads Light Treads Structural Scanner Structural Scanner Signal Interpreter Improved Terrain Scanner Seismic Detector Propulsion Shielding Propulsion Shielding Propulsion Shielding Propulsion Shielding Utility Shielding Light Armor Plating Light Armor Plating Light Armor Plating Light Armor Plating Light Armor Plating Small Laser Datajack Mining Laser Peak State ------------ > --- POWER ------------ Light Ion Engine > --- PROPULSION ------- Wheel Compact Wheel > --- UTILITY ---------- Huge Storage Unit Propulsion Shielding > --- WEAPON ----------- Assault Rifle Light Assault Rifle > --- INVENTORY -------- Light Ion Engine Light Treads Light Treads Wheel Structural Scanner Signal Interpreter Improved Terrain Scanner Seismic Detector Propulsion Shielding Propulsion Shielding Propulsion Shielding Utility Shielding Light Armor Plating Small Laser Light Assault Rifle Light Assault Rifle Datajack Mining Laser [Rating: 9] Favorites ----------- Power Light Ion Engine Engine Light Ion Engine Propulsion Wheel Treads Light Treads Wheel Wheel Utility Huge Storage Unit Device Seismic Detector Storage Huge Storage Unit Protection Light Armor Plating Weapon Light Assault Rifle Ballistic Gun Light Assault Rifle Build | -11 -10 ------- Run | Yrd Mat Slots Evolved . | . . Power . | . . Propulsion . | . . Utility . | . . Weapon . | . . Parts Attached 16 | 7 9 Power 2 | 1 1 Engine 2 | 1 1 Core . | . . Reactor . | . . Propulsion 5 | 2 3 Treads 2 | 2 . Leg . | . . Wheel 3 | . 3 Hover . | . . Flight . | . . Utility 5 | 2 3 Device 1 | 1 . Storage 2 | 1 1 Processor . | . . Hackware . | . . Protection 2 | . 2 Artifact . | . . Weapon 4 | 2 2 Energy Gun . | . . Energy Cannon . | . . Ballistic Gun 4 | 2 2 Ballistic Cannon . | . . Launcher . | . . Special Weapon . | . . Impact Weapon . | . . Slashing Weapon . | . . Piercing Weapon . | . . Special Melee Weapon . | . . Unidentified Prototypes . | . . Parts Lost 8 | . 8 Power 2 | . 2 Propulsion 3 | . 3 Utility 1 | . 1 Weapon 2 | . 2 Highest Loss Streak 3 | . 3 To Critical Strikes . | . . Average Backups 14 | 4 16 Power . | . . Propulsion 2 | 1 2 Utility 8 | . 9 Weapon 2 | . 2 Tool/Special . | . . Unused Backups 18 | . 18 Power 1 | . 1 Propulsion . | . . Utility 14 | . 14 Weapon 2 | . 2 Tool/Special 1 | . 1 Average Slot Usage (%) 98 | . 98 Engine 13 | . 13 Treads 5 | . 5 Wheel 22 | . 22 Device 4 | . 4 Storage 14 | . 14 Protection 9 | . 9 Ballistic Gun 27 | . 27 Peak Build Rating 9 | 8 9 Average Rating 8 | 6 8 On Entrance 4 | . 8 Avg Prop Armor Cover (%) 4 | . 4 Naked Turns . | . . Heaviest Build 89 | 12 89 Greatest Support 40 | 40 40 Greatest Overweight (x) 8 | 1 8 Average Overweight (x) 3 | . 3 Largest Inventory Capacity 25 | 8 25 Average Capacity 19 | 7 21 Most Carried 22 | 7 22 Average Carried 14 | 4 16 Final Capacity 25 | 8 25 Final Carried 20 | 7 20 Class Distribution -------------------- 100% | Mutant Dominant Class ---------------- Mutant | -10/Materials Resources | -11 -10 ----------- Run | Yrd Mat Matter Collected 757 | 358 399 Remotely . | . . Salvage Created 935 | 213 722 Parts 59 | 18 41 Haulers Intercepted 1 | . 1 Recyclers Shooed 1 | . 1 Parts Field Recycled . | . . Retrieved Matter . | . . Parts Self-Destructed . | . . Prevented . | . . Parts Restored . | . . Kills | -11 -10 ------- Run | Yrd Mat Combat Hostiles Destroyed 18 | . 18 Guns 18 | . 18 Classes Destroyed 7 | 3 4 Worker 2 | 2 . Builder 1 | . 1 Tunneler 6 | 6 . Hauler 1 | . 1 Recycler 1 | 1 . Swarmer 4 | . 4 Grunt 14 | . 14 Best Kill Streak 3 | 3 3 Combat Bots Only 3 | . 3 Max Kills in Single Turn 1 | 1 1 Gunslinging . | . . Exploded . | . . Melee . | . . Uniques/NPCs Destroyed . | . . Combat | -11 -10 -------- Run | Yrd Mat Hostile Shots Fired 92 | . 92 Missed 21 | . 21 Hits 71 | . 71 Projectile 71 | . 71 Critical Strikes 1 | . 1 Damage Taken 831 | . 831 Core 254 | . 254 Absorbed by Shields . | . . Redirected to Shielding 15 | . 15 Core Remaining (%) 100 | 100 . Volleys Fired 119 | 25 94 Largest 2 | 2 2 Hottest 40 | 40 40 Shots Fired 238 | 50 188 Gun 238 | 50 188 Cannon . | . . Launcher . | . . Special . | . . Kinetic 238 | 50 188 Thermal . | . . Explosive . | . . Electromagnetic . | . . Robot Hit Streak 11 | 10 11 Robot Miss Streak 4 | 2 4 Penetration Max . | . . Secondary Targets 1 | . 1 Max Gunslinging Chain 1 | . 1 Shots Hit Robots 155 | 31 124 Core Hits 59 | 13 46 Critical Kills 1 | 1 . Critical Parts Destroyed . | . . Critical Strikes 1 | 1 . Destroy 1 | 1 . Melee Attacks . | . . Impact . | . . Slashing . | . . Piercing . | . . Sneak Attacks . | . . Combat Hostiles . | . . Follow-up Attacks . | . . Damage Inflicted 1409 | 249 1160 Guns 1409 | 249 1160 Cannons . | . . Explosions . | . . Melee . | . . Ramming . | . . Kinetic 1409 | 249 1160 Thermal . | . . Explosive . | . . Electromagnetic . | . . Impact . | . . Slashing . | . . Piercing . | . . Highest Corruption 2 | . 2 Average Corruption 2 | . 2 Corruption Purged . | . . Corruption Blocked . | . . Effects 12 | . 12 Message Errors 3 | . 3 Matter Fused 4 | . 4 Heat Flow Errors 2 | . 2 Data Loss (minor) 2 | . 2 Alerts 1 | . 1 Overload Shots . | . . Overflow Damage . | . . Projectiles . | . . Explosions . | . . Melee . | . . Knockbacks . | . . Impact . | . . Kinetic . | . . Secondary . | . . Self-Inflicted Damage . | . . Shots . | . . Rammed . | . . Targets Rammed . | . . Kicked . | . . Crushed . | . . Highest Temperature 247 | . 247 Average Temperature 40 | . 40 Received Heat Transfer 396 | . 396 Siege Activations . | . . Martial Activations . | . . Shielding Activations . | . . Robots Disrupted . | . . Combat Hostiles . | . . Robots Corrupted . | . . Combat Hostiles . | . . Parts Fried . | . . Impact Corruptions . | . . Robots Melted . | . . Combat Hostiles . | . . Parts Melted . | . . Heat Transferred . | . . Parts Sabotaged . | . . Parts Stolen . | . . Parts Stripped . | . . Power Chain Reactions . | . . Alert | -11 -10 ------- Run | Yrd Mat Maximum Alert Level . | . . Low Security (%) 100 | 100 100 Level 1 . | . . Level 2 . | . . Level 3 . | . . Level 4 . | . . Level 5 . | . . High Security . | . . Max Security . | . . Peak Influence 169 | 10 169 Initial . | . . Average 77 | 1 89 Influence Increases 628 | 45 583 Destroy 0b10 Robot/C 360 | . 360 Destroy 0b10 Robot/NC 55 | 45 10 Destroy Leader 92 | . 92 Successful Hack 16 | . 16 Select Force Hacks 60 | . 60 Disable Machine 15 | . 15 Lose Combat Pursuer 30 | . 30 Influence Decreases 547 | 45 502 Time Decay 467 | 45 422 Lost Part 80 | . 80 Squads Dispatched 6 | . 6 Investigation 3 | . 3 Extermination . | . . Reinforcement 3 | . 3 Assault . | . . Garrison . | . . Intercept . | . . Searches Triggered . | . . Construction Impeded . | . . Haulers Reinforced . | . . Active Scanning Responses . | . . Cargo Convoy Interrupts . | . . Stealth | -11 -10 --------- Run | Yrd Mat Distress Signals 2 | . 2 Communications Jammed . | . . Distress Signals . | . . Times Spotted 33 | . 33 Peak Tracking Total 7 | . 7 Tactical Retreats 3 | . 3 Traps | -11 -10 ------- Run | Yrd Mat Traps Triggered 3 | . 3 Indirectly . | . . Trap Hack Attempts . | . . Triggered . | . . Disarmed . | . . Reprogrammed . | . . Reused . | . . Traps Extracted . | . . Installed . | . . Triggered . | . . Machines | -11 -10 ---------- Run | Yrd Mat Machines Disabled 1 | . 1 Max in Single Turn 1 | . 1 Machines Repaired . | . . Machines Dismantled . | . . Machines Sabotaged . | . . Overloaded Fab Kills . | . . Hacking | -11 -10 --------- Run | Yrd Mat Machines Accessed 7 | . 7 Terminals 5 | . 5 Fabricators . | . . Repair Stations . | . . Recycling Units 2 | . 2 Scanalyzers . | . . Garrison Access . | . . Total Hacks 26 | . 26 Successful 16 | . 16 Failed 10 | . 10 Catastrophic 1 | . 1 Database Lockouts . | . . Manual 21 | . 21 Terminals 18 | . 18 Fabricators . | . . Repair Stations . | . . Recycling Units 8 | . 8 Scanalyzers . | . . Garrison Access . | . . Terminal Hacks 2 | . 2 Robot Analysis 1 | . 1 Terminal Index 1 | . 1 Fabricator Hacks . | . . Repair Station Hacks . | . . Recycling Unit Hacks 3 | . 3 Report Inventory 2 | . 2 Retrieve Components 1 | . 1 Scanalyzer . | . . Garrison Access Hacks . | . . Unauthorized Hacks 11 | . 11 Terminals 9 | . 9 Botnet 3 | . 3 Operators 1 | . 1 Skim 5 | . 5 Fabricators . | . . Repair Stations . | . . Recycling Units 2 | . 2 Tunnel 2 | . 2 Scanalyzers . | . . Garrison Access . | . . Data Cores Recovered . | . . Used . | . . Hacking Detections 6 | . 6 Full Trace Events . | . . Feedback Events . | . . Feedback Blocked . | . . Robot Schematics Acquired . | . . Robots Built . | . . Authchips . | . . Time . | . . Total Robot Build Rating . | . . Part Schematics Acquired . | . . Parts Built . | . . Authchips . | . . Time . | . . Total Part Build Rating . | . . Part Studies Acquired . | . . Parts Repaired . | . . Time . | . . Parts Recycled . | . . Recycled Matter . | . . Retrieved Matter . | . . Retrieved Components 2 | . 2 Parts Scanalyzed . | . . Part Schematics Acquired . | . . Parts Damaged . | . . Bothacking | -11 -10 ------------ Run | Yrd Mat Used RIF Installer . | . . Robots Hacked . | . . Non-combat . | . . Combat . | . . Robot Hacks Applied . | . . Relay Couplers Released . | . . Fabnet Peak Effective % . | . . Robots Rewired . | . . Allies Hacked . | . . Hacks Repelled . | . . Allies | -11 -10 -------- Run | Yrd Mat Total Allies . | . . Largest Group . | . . Highest-Rated Group . | . . Highest-Rated Ally . | . . Total Orders . | . . Ally Attacks . | . . Total Damage . | . . Kills . | . . Allies Corrupted . | . . Allies Melted . | . . Intel | -11 -10 ------- Run | Yrd Mat Active Infowar (turns) 570 | 95 475 Seismic 570 | 95 475 Robot Analysis Total 1 | . 1 Derelict Logs Recovered . | . . Drone Launches . | . . Drone Recoveries . | . . Exploration | -11 -10 ------------- Run | Yrd Mat Turns Passed 1913 | 268 1645 Spaces Moved 932 | 117 815 Core 8 | 8 . Treads 283 | 109 174 Legs . | . . Wheels 641 | . 641 Hover . | . . Flight . | . . Fastest Speed 50 | 50 135 Average Speed 158 | 154 158 Slowest Speed 200 | 160 200 Overloaded Moves . | . . Propulsion Burnouts . | . . Robots Hopped . | . . Potential Cave-ins . | . . Cave-ins Triggered . | . . Exploration Rate (%) 51 | 8 95 Regions Visited 1 Branch Regions . Pre-discovered Areas 2 | . 2 Known Exits Taken . | . . Unknown Exits Taken 1 | 1 . Scrap Searched . | . . Spaces Dug . | . . Terrain Destroyed . | . . Melee . | . . Projectile . | . . AOE . | . . Terrain Rammed . | . . Walls Destroyed . | . . Machines Disabled . | . . Actions | -11 -10 --------- Run | Yrd Mat Total 1159 | 156 1003 Wait 63 | 1 62 Move 931 | 116 815 Hop . | . . Pick Up 26 | 7 19 Fast Attach 7 | 7 . Attach 4 | . 4 Detach . | . . Swap 6 | . 6 Drop 3 | . 3 Fire 119 | 25 94 Melee . | . . Ram . | . . Kick . | . . Crush . | . . Escape Stasis . | . . Rewire . | . . Trap . | . . Miscellaneous . | . . Route ------- -11/Scrapyard -10/Materials (discovered 5 exits: [*Mat x3] / [*Min] / Sub) History --------- Turn | Location | Event 20 | -11/Scrapyard | Discovered new exit (range 15) 269 | -11/Scrapyard | Entered Materials 308 | -10/Materials | Build established: Mutant 375 | -10/Materials | Discovered new exit (range 16) 769 | -10/Materials | Discovered new exit (range 15) 1222 | -10/Materials | Core integrity fell below 50% 1502 | -10/Materials | Discovered new exit (range 4) 1635 | -10/Materials | Discovered new exit (range 14) 1669 | -10/Materials | Derelicts attacked the area 1837 | -10/Materials | Identified exit to Subcaves 1901 | -10/Materials | Core integrity fell below 20% 1907 | -10/Materials | Learned Recycling recycling unit intel 1914 | -10/Materials | Destroyed by G-47 Trooper with Particle Gun Last Messages --------------- 01800_ 05TQQM/PR3BVU WZWTO YD#ZGMZ3 01806_ K-01 Serf cleans the Terminal. 01823_ Acquired 15 matter. 01824_ O-16 Technician destroyed. 01837_ >> SKIM: Loading 1 Subcaves entrance... 01843_ System corrupted: Component data lost. 01853_ Lgt. Armor Plating destroyed. 01855_ Lgt. Assault Rifle destroyed. 01860_ G-34 Mercenary destroyed. 01861_ Acquired 14 matter. 01864_ K-01 Serf collects debris. 01890_ System corrupted: IFF burst signal emitted. 01896_ K-01 Serf collects debris. 01898_ Lgt. Ion Engine destroyed. 01900_ K-01 Serf collects debris. 01902_ Wheel destroyed. 01906_ K-01 Serf collects debris. 01906_ Wheel destroyed. 01906_ Critical hit (Burn: +37). 01907_ >> SKIM: Stored Recycling recycling unit intel. Map ----- +----------------------------------------------------+ | ########^^ #=% #??????# !| # # | | # # < # ! #??????? # + | | # *#[ # #????????? # # | | # +% #####+#####??????????? # ######### | | # #! #??# #?????????????###+## #??????? | | # "Y" # #### #???########### #??????? | | # """ # #???# % ! # ^ +??????? | | ######## #???# =!! #^ ^ T #??????? | | # ""#???# # ###??????? | | """ # ! """ T"#???# + #????????? | | """"" + """ ""#???########### """ #????????? | | "" " # "" ##### ## """ ######???? | | # %+! # """ # #???? | | ######## #####[ + #???? | | ???????## ######+##???# # T #???? | | ????????# #??? ???# # #####! #???? | | ????????#%#? ?# ## ####### ##???? | | ???######+## ## ## #=""" # #????? | | ???# % ## ## ## #=""" + #????? | | ???# ## ## + #%""" # #????? | | ???# ## """ """ ####+####### +*[ + #????? | | ???# *## """ """ #??# #?????# # [ ##+###### | | ???# =%## """ """ #??# #?????# # "Y" # | | ???# =%!############??# #?????# # """ # | | ########/## * ####### ####### # # | | %= % =*[ g @ ####### [ | | # * [ < ==[ ####### | | # = * *%= # | | # #######" ##![ # | | # #?????#" |"! "## # | | + #?????#"""""""## ########### #####+### | | # #?????########## ## # |% ### #? | | # ################ ## """ # #? | | ## ###### """ # #? | | ## """"" #????# """ # ######## #? | | + """"" #????# # #??????## ##? | | ## """"" #????#######+## #???????# #?? | | ##! = #??####### #???????# #?? | | ##+#############+###??# ######### #?? | | #######?#*% #???# ####+######## # #?? | | # # #???# # #??#! """ # #?? | | # """ # #???# + """ #### """ # #?? | | # """ + #####+## """"" # + """ + #?? | | """ # """ # ## # """"" #### # #?? | | """ # # ## """# """"" #??# # #?? | | """ ######### ##= """# """ #??######## #?? | | """ ## ## """# ??????????# #?? | | """ ## ## # ???????????# #?? | | ? ## ## = # ???????????# #?? | | ?? #T ######### ########????????##?# #?? | +----------------------------------------------------+ Best States ------------- Heat Dissipation 25 Energy Generation 10 Energy Capacity 125 Matter Stores 300 Matter Capacity 300 Sight Range 16 Terrain Scan Density 10 Armor Coverage 150 Propulsion Shielding 33 Evasion (%) 40 Recoil Reduction 2 Item Schematics ----------------- None Robot Schematics ------------------ None Fabricated ------------ Nothing Repaired ---------- Nothing Studied --------- None Alien Tech Used ----------------- None Achievements -------------- None Challenges ------------ None Game ------ Seed ProcessingKineticPit Manual? 0 Play Time 00:15:27 Cumulative 302.4 hours Start 2025.12.01 @ 22:09:37 End 2025.12.01 @ 22:17:58 Sessions 1 Manual Loads 0 Difficulty Rogue Special Mode None Game No. 374 Rogue 374 Adventurer 0 Explorer 0 Win Type - Total 21 Types 13/0/3/1/1/0/1/1/0/1 Lore% 78 Gallery% 76 Achievement% 60 Wizard Run 0 Options --------- Layout 1 ASCII 0 Keyboard 1 Movement Numpad Keybinds 0 Fullscreen 2 Font 32/SmallcapsGlow Map View 77x35 Zoom Use 0% Tactical HUD 1 Map Filters NONE Filters NONE Steam 1 RUN: e0a7d16b-25fc-4366-95ea-fa761c76fa05